[Event "IIFL Wealth  4th Mumbai Junior U-13"]
[Site "Mumbai"]
[Date "2019.01.03"]
[Round "5"]
[White "Renganayaki V"]
[Black "Larmet, Nino"]
[Result "1/2-1/2"]
[ECO "D44"]
[WhiteElo "1376"]
[BlackElo "1835"]
[Annotator "NA RC"]
[PlyCount "82"]
[EventDate "2018.12.30"]
[EventType "swiss"]
[EventCountry "IND"]
[SourceTitle "playchess.com"]
[Source "ChessBase"]
[SourceQuality "1"]
[TimeControl "40/5400+30:1800+30"]

1. d4 {[%emt 0:00:00]} Nf6 {[%emt 0:00:00]} 2. c4 {[%emt 0:00:00]} e6 {[%emt 0:00:00]} 3. Nf3 {[%emt 0:00:00]} d5 {[%emt 0:00:08]} 4. Nc3 {[%emt 0:00:00]} c6 {[%emt 0:00:06]} 5. Bg5 {[%emt 0:00:10]} dxc4 {[%emt 0:02:11]} 6. e4 {[%emt 0:00:04]} b5 {[%emt 0:00:04]} 7. e5 {[%emt 0:00:05]} h6 {[%emt 0:00:04]} 8. Bh4 {[%emt 0:00:03]} g5 {[%emt 0:00:15]} 9. Nxg5 {[%emt 0:00:08]} hxg5 {[%emt 0:00:03]} 10. Bxg5 {[%emt 0:00:01]} Nbd7 {[%emt 0:00:17]} 11. exf6 {[%emt 0:00:07] Bb} Bb7 {[%emt 0:11:09]} 12. g3 {[%emt 0:15:49] LiveBook: 649 Games} Bd6 {[%emt 0:11:46] D44: Semi-Slav: Botvinnik System} (12... c5 $11 {keeps the balance.} 13. d5 Bh6 (13... Qb6 14. Bg2 O-O-O 15. O-O b4 16. Na4 Qb5 17. a3 Nb8 18. axb4 cxb4 19. Qg4 Bxd5 20. Rac1 Qxa4 21. Rxc4+ Kb7 22. Rfc1 Na6 23. Rd4 Bc5 24. Re4 Bb6 25. h4 Qb3 26. Bf4 Qxb2 27. Re2 Qxf6 {0-1 (37) Melkumyan,H (2662)-Sasikiran,K (2666) Yerevan 2018}) 14. Bxh6 (14. Nxb5 Qa5+ 15. Qd2 Qxb5 $17) 14... Rxh6) 13. Bg2 {[%emt 0:00:15]} Qc7 {[%emt 0:02:11]} 14. O-O {[%emt 0:07:57]} O-O-O {[%emt 0:08:15]} 15. Ne4 $146 {[%emt 0:10:49]} ({Predecessor:} 15. a4 b4 16. Ne4 e5 17. a5 a6 18. Rc1 exd4 19. Qxd4 Ne5 20. Nxd6+ Qxd6 21. Qxd6 Rxd6 22. Bf4 Re8 23. Bxe5 Rxe5 24. Rxc4 c5 25. Rfc1 Bc6 26. Bxc6 Rxc6 27. Rxb4 Rxf6 28. Rbc4 {1-0 (28) Sladek,V (2002)-Pardy,M (2042) Ostrava 2005}) 15... e5 {[%emt 0:12:04]} (15... c5 $16 {is a better defense.}) 16. Nxd6+ {[%emt 0:01:25]} Qxd6 {[%emt 0:00:02]} 17. dxe5 {[%emt 0:00:38]} Qxe5 {[%emt 0:01:14]} 18. Bf4 {[%emt 0:04:32]} Qxf6 {[%emt 0:00:47]} 19. Qd6 {[%emt 0:00:45]} Qxd6 {[%emt 0:00:18]} 20. Bxd6 {[%emt 0:00:02]} c5 {[%emt 0:10:19]} 21. Rac1 {[%emt 0:06:11]} Bxg2 {[%emt 0:00:35]} 22. Kxg2 {[%emt 0:00:02]} Kb7 {[%emt 0:02:09]} 23. Rfd1 {[%emt 0:03:49]} Kc6 {[%emt 0:04:47]} 24. Bf4 {[%emt 0:02:20]} Nb6 {[%emt 0:01:02]} 25. Rxd8 {[%emt 0:03:03]} Rxd8 {[%emt 0:00:11]} 26. h4 {[%emt 0:00:22]} Nd5 {[%emt 0:02:33]} 27. h5 {[%emt 0:03:19]} Nxf4+ {[%emt 0:00:33]} 28. gxf4 {[%emt 0:00:02]} Rh8 {[%emt 0:00:43]} 29. Rh1 {[%emt 0:00:14]} Kd5 {[%emt 0:03:28]} 30. Kf3 {[%emt 0:00:06]} c3 {[%emt 0:21:09]} 31. bxc3 {[%emt 0:00:47]} Kc4 {[%emt 0:00:00]} 32. Ke3 {[%emt 0:10:43]} Kxc3 {[%emt 0:00:34]} 33. Rc1+ {[%emt 0:00:23]} Kb4 {[%emt 0:00:43]} 34. a3+ {[%emt 0:00:19]} Kxa3 {[%emt 0:00:09]} 35. Rxc5 {[%emt 0:00:03]} a6 {[%emt 0:02:42]} 36. Kd3 {[%emt 0:00:43]} Kb4 {[%emt 0:00:51]} 37. Rg5 {[%emt 0:00:13]} a5 {[%emt 0:00:42]} 38. Kc2 {[%emt 0:00:09]} a4 $19 {[%emt 0:00:56]} 39. f5 {[%emt 0:00:17]} Rh7 {[%emt 0:00:50]} 40. Rg4+ {[%emt 0:00:00]} Ka5 {[%emt 0:00:00]} 41. Rh4 {[%emt 0:00:47]} b4 1/2-1/2

[Event "IIFL Wealth  4th Mumbai Junior U-13"]
[Site "Mumbai"]
[Date "2019.01.03"]
[Round "5"]
[White "Vaval Aaditi"]
[Black "Daware Arth K"]
[Result "1-0"]
[ECO "C44"]
[WhiteElo "1367"]
[BlackElo "1155"]
[Annotator "NA"]
[PlyCount "109"]
[EventDate "2018.12.30"]
[EventType "swiss"]
[EventCountry "IND"]
[SourceTitle "playchess.com"]
[Source "ChessBase"]
[SourceQuality "1"]
[TimeControl "40/5400+30:1800+30"]

1. e4 {[%emt 0:00:00]} Nc6 {[%emt 0:09:03]} 2. Nf3 {[%emt 0:00:00]} e5 {[%emt 0:00:45]} 3. d4 {[%emt 0:00:02]} exd4 {[%emt 0:00:31]} 4. Bc4 {[%emt 0:00:11]} h6 {[%emt 0:00:19]} 5. O-O {[%emt 0:03:31]} Bc5 {[%emt 0:03:58]} 6. c3 {[%emt 0:01:32]} d3 {[%emt 0:04:03]} 7. Qxd3 {[%emt 0:01:40]} a6 {[%emt 0:02:13]} 8. Bxf7+ {[%emt 0:00:31]} Kxf7 {[%emt 0:02:40]} 9. Qd5+ {[%emt 0:00:21]} Ke8 {[%emt 0:00:25]} 10. Qh5+ {[%emt 0:00:46]} Kf8 {[%emt 0:03:21]} 11. Qxc5+ {[%emt 0:00:11]} Qe7 {[%emt 0:01:32]} 12. Qe3 {[%emt 0:08:05]} d6 {[%emt 0:12:48]} 13. Nbd2 {[%emt 0:06:36]} g5 {[%emt 0:05:45]} 14. Nd4 {[%emt 0:02:28]} Ke8 {[%emt 0:09:36]} 15. Nxc6 {[%emt 0:03:44]} bxc6 {[%emt 0:00:14]} 16. Qd4 {[%emt 0:00:39]} Qf6 {[%emt 0:04:02]} 17. Qe3 {[%emt 0:04:11]} Ne7 {[%emt 0:04:17]} 18. Nb3 {[%emt 0:09:49]} Ng6 {[%emt 0:05:25]} 19. Qg3 {[%emt 0:05:09]} c5 {[%emt 0:05:55]} 20. f4 {[%emt 0:05:42]} Rf8 {[%emt 0:04:03]} 21. f5 {[%emt 0:01:32]} Ne5 {[%emt 0:03:12]} 22. Nd2 {[%emt 0:03:47]} g4 {[%emt 0:04:14]} 23. Nb1 {[%emt 0:05:10]} h5 {[%emt 0:02:09]} 24. h4 {[%emt 0:04:11]} Nf7 {[%emt 0:01:17]} 25. Na3 {[%emt 0:01:44]} Kd7 {[%emt 0:02:21]} 26. Bd2 {[%emt 0:07:54]} a5 {[%emt 0:02:31]} 27. Nc2 {[%emt 0:01:24]} Bb7 {[%emt 0:01:18]} 28. Rae1 {[%emt 0:00:46]} Rae8 {[%emt 0:01:00]} 29. Rf4 {[%emt 0:00:47]} Bc6 {[%emt 0:01:41]} 30. b3 {[%emt 0:02:46]} Bb5 {[%emt 0:01:34]} 31. c4 {[%emt 0:00:53]} Bc6 {[%emt 0:00:57]} 32. Bc3 {[%emt 0:00:29]} Qh6 {[%emt 0:01:02]} 33. Re2 {[%emt 0:03:48]} a4 {[%emt 0:01:07]} 34. Ne1 {[%emt 0:01:08]} Ne5 {[%emt 0:00:38]} 35. Bxe5 {[%emt 0:00:27]} Rxe5 {[%emt 0:00:06]} 36. Nd3 {[%emt 0:00:35]} Ree8 {[%emt 0:00:52]} 37. Qe1 {[%emt 0:01:24]} axb3 {[%emt 0:00:36]} 38. axb3 {[%emt 0:00:02]} Qf6 {[%emt 0:00:11]} 39. e5 {[%emt 0:01:07]} Qe7 {[%emt 0:01:05]} 40. e6+ {[%emt 0:00:00]} Kc8 {[%emt 0:00:00]} 41. b4 {[%emt 0:02:49]} cxb4 {[%emt 0:09:28]} 42. Nxb4 {[%emt 0:01:38]} Bb7 {[%emt 0:02:50]} 43. Nd5 {[%emt 0:00:45]} Qh7 {[%emt 0:08:51]} 44. Qa5 {[%emt 0:02:53]} c6 {[%emt 0:04:49]} 45. Nb6+ {[%emt 0:08:19]} Kb8 {[%emt 0:01:12]} 46. Nd7+ {[%emt 0:00:18]} Kc8 {[%emt 0:00:41]} 47. Nxf8 {[%emt 0:01:19]} Qh6 {[%emt 0:01:05]} 48. Ng6 {[%emt 0:02:25]} Qg7 {[%emt 0:02:35]} 49. f6 {[%emt 0:07:25]} Qxg6 {[%emt 0:01:06]} 50. f7 {[%emt 0:00:10]} Qb1+ {[%emt 0:01:38]} 51. Rf1 {[%emt 0:00:22]} Qg6 {[%emt 0:00:15]} 52. fxe8=Q+ {[%emt 0:00:46]} Qxe8 {[%emt 0:00:08]} 53. Rf7 {[%emt 0:00:54]} Qd8 {[%emt 0:00:27]} 54. Qxd8+ {[%emt 0:00:10]} Kxd8 {[%emt 0:00:05]} 55. e7+ {[%emt 0:00:21]} 1-0

[Event "IIFL Wealth  4th Mumbai Junior U-13"]
[Site "Mumbai"]
[Date "2019.01.03"]
[Round "5"]
[White "Jadhav Jyotiraditya"]
[Black "Jain Vihaan"]
[Result "1-0"]
[ECO "A56"]
[WhiteElo "1358"]
[BlackElo "1149"]
[Annotator "NA RC"]
[PlyCount "65"]
[EventDate "2018.12.30"]
[EventType "swiss"]
[EventCountry "IND"]
[SourceTitle "playchess.com"]
[Source "ChessBase"]
[SourceQuality "1"]
[TimeControl "40/5400+30:1800+30"]

1. d4 {[%emt 0:00:29]} Nf6 {[%emt 0:00:00]} 2. c4 {[%emt 0:00:08]} c5 {[%emt 0:00:01]} 3. Nf3 {[%emt 0:00:08]} e6 {[%emt 0:01:06]} 4. Nc3 {[%emt 0:00:26]} Nc6 {[%emt 0:00:13]} 5. d5 {[%emt 0:07:07]} Na5 {[%emt 0:03:16]} 6. Qa4 {[%emt 0:07:58]} b6 {[%emt 0:02:39]} 7. e4 {[%emt 0:08:08]} exd5 {[%emt 0:02:27]} 8. cxd5 {[%emt 0:07:39]} Bb7 {[%emt 0:00:11]} 9. Bg5 {[%emt 0:07:16]} Qc7 {[%emt 0:02:32]} 10. O-O-O {[%emt 0:06:31]} Ng4 {[%emt 0:02:09]} 11. Bh4 {[%emt 0:04:39]} a6 {[%emt 0:03:22]} 12. h3 {[%emt 0:06:26]} Ne5 {[%emt 0:07:39]} 13. Nxe5 {[%emt 0:06:14]} Qxe5 {[%emt 0:01:52]} 14. Bg3 {[%emt 0:01:05]} Qg5+ {[%emt 0:00:41]} 15. Kb1 {[%emt 0:00:11]} g6 {[%emt 0:04:55]} 16. Bc7 {[%emt 0:05:40]} Bc8 {[%emt 0:03:47]} 17. Bxb6 {[%emt 0:06:05]} Nb7 {[%emt 0:01:35]} 18. Nb5 {[%emt 0:04:32]} Bd6 {[%emt 0:02:45]} 19. Nxd6+ {[%emt 0:00:29]} Nxd6 {[%emt 0:00:14]} 20. Bxc5 {[%emt 0:00:12]} Nb7 {[%emt 0:00:56]} 21. Be3 {[%emt 0:00:07]} Qe7 {[%emt 0:00:39]} 22. Qd4 {[%emt 0:00:12]} Rg8 {[%emt 0:00:41]} 23. e5 {[%emt 0:01:53]} d6 {[%emt 0:01:54]} 24. f4 {[%emt 0:00:47]} Bf5+ {[%emt 0:01:11]} 25. Bd3 {[%emt 0:01:14]} Bxd3+ {[%emt 0:00:52]} 26. Rxd3 {[%emt 0:02:45]} Rd8 {[%emt 0:02:34]} 27. Re1 {[%emt 0:02:22]} Qh4 {[%emt 0:00:38]} 28. Bf2 {[%emt 0:00:09]} Qh5 {[%emt 0:00:33]} 29. g4 {[%emt 0:02:45]} Qh6 {[%emt 0:00:47]} 30. exd6+ {[%emt 0:00:06]} Kf8 {[%emt 0:00:15]} 31. Qf6 {[%emt 0:00:18]} Rd7 {[%emt 0:01:07]} 32. Re7 {[%emt 0:02:41]} Rxd6 {[%emt 0:00:44]} 33. Qxf7# {[%emt 0:00:11]} 1-0

[Event "IIFL Wealth  4th Mumbai Junior U-13"]
[Site "Mumbai"]
[Date "2019.01.03"]
[Round "5"]
[White "Aggarwal Vansh"]
[Black "Potawad Anirudhha"]
[Result "0-1"]
[ECO "C67"]
[WhiteElo "1328"]
[BlackElo "1849"]
[Annotator "NA"]
[PlyCount "148"]
[EventDate "2018.12.30"]
[EventType "swiss"]
[EventCountry "IND"]
[SourceTitle "playchess.com"]
[Source "ChessBase"]
[SourceQuality "1"]
[TimeControl "40/5400+30:1800+30"]

1. e4 {[%emt 0:01:02]} e5 {[%emt 0:00:00]} 2. Nf3 {[%emt 0:00:15]} Nc6 {[%emt 0:00:00]} 3. Bb5 {[%emt 0:00:21]} Nf6 {[%emt 0:01:58]} 4. O-O {[%emt 0:00:33]} Nxe4 {[%emt 0:00:25]} 5. Re1 {[%emt 0:00:10]} Nd6 {[%emt 0:00:08]} 6. Nxe5 {[%emt 0:00:08]} Nxe5 {[%emt 0:00:06]} 7. Rxe5+ {[%emt 0:00:38]} Be7 {[%emt 0:00:02]} 8. Bf1 {[%emt 0:00:27]} O-O {[%emt 0:00:08]} 9. d4 {[%emt 0:00:50]} Bf6 {[%emt 0:00:07]} 10. Re1 {[%emt 0:02:08]} Nf5 {[%emt 0:00:29] C67: Ruy Lopez: Berlin Defence: 4 0-0 Nxe4} (10... Re8 11. c3 Rxe1 12. Qxe1 Ne8 13. d5 c6 14. Nd2 cxd5 15. Nf3 d6 16. Be3 Nc7 17. Qd2 Bd7 18. g3 {½-½ (32) Giri,A (2780)-Caruana,F (2827) Batumi 2018}) 11. d5 {[%emt 0:01:33]} d6 {[%emt 0:03:12]} 12. Qd3 $146 {[%emt 0:02:23]} ({Predecessor:} 12. Nd2 Nh4 13. Ne4 Bf5 14. Ng3 Bg6 15. c3 Re8 16. Be3 Bg5 17. Bxg5 Qxg5 18. Qd4 a5 19. f4 {½-½ (19) Wang,H (2709)-Fedoseev,V (2718) Riadh 2017}) 12... Be5 {[%emt 0:10:56]} 13. Nd2 {[%emt 0:06:17]} Qf6 {[%emt 0:17:01]} 14. c3 {[%emt 0:13:07]} Nh6 {[%emt 0:17:30]} (14... Bd7 $14) 15. Ne4 {[%emt 0:05:16]} Qg6 {[%emt 0:01:59]} 16. Ng3 {[%emt 0:05:54]} f5 {[%emt 0:02:48]} 17. f4 {[%emt 0:03:23]} Bf6 {[%emt 0:00:13]} 18. Be2 {[%emt 0:08:00]} Qf7 {[%emt 0:04:22]} 19. Bd2 {[%emt 0:03:43]} Bd7 {[%emt 0:03:19]} 20. c4 {[%emt 0:02:23]} g6 {[%emt 0:08:58]} 21. Rab1 {[%emt 0:03:16]} Qg7 {[%emt 0:02:28]} 22. b3 {[%emt 0:00:38]} Nf7 {[%emt 0:01:47]} 23. Rbc1 {[%emt 0:04:34]} Bd4+ {[%emt 0:04:19]} 24. Kh1 {[%emt 0:02:24]} Rfe8 {[%emt 0:02:10]} 25. Bc3 {[%emt 0:02:13]} Bxc3 {[%emt 0:00:09]} 26. Qxc3 {[%emt 0:00:09]} Qh6 {[%emt 0:06:58]} 27. Qf3 {[%emt 0:02:14]} Re7 {[%emt 0:01:48]} 28. Bd3 {[%emt 0:04:17]} Rae8 {[%emt 0:00:18]} 29. Rxe7 {[%emt 0:00:39]} Rxe7 {[%emt 0:00:01]} 30. Kg1 {[%emt 0:00:24] [#]} Ne5 $1 {[%emt 0:01:21] Pin} 31. Qe3 {[%emt 0:03:22]} Qxh2+ {[%emt 0:03:36]} 32. Kf1 {[%emt 0:02:00]} Nxd3 {[%emt 0:02:41]} 33. Qxd3 {[%emt 0:05:55]} Qh4 {[%emt 0:00:49]} 34. Qf3 {[%emt 0:01:21]} Qf6 {[%emt 0:01:07]} 35. Qf2 {[%emt 0:01:08]} b6 {[%emt 0:01:35]} 36. Rd1 {[%emt 0:00:51]} Qc3 37. Re1 {[%emt 0:00:58]} Rxe1+ {[%emt 0:02:14]} 38. Qxe1 {[%emt 0:00:02]} Qxe1+ 39. Kxe1 {[%emt 0:00:09]} c6 {[%emt 0:00:33]} 40. Ne2 {[%emt 0:00:00]} cxd5 {[%emt 0:00:00]} 41. cxd5 {[%emt 0:00:34]} Kf7 {[%emt 0:02:58]} 42. Kf2 {[%emt 0:00:22]} h6 {[%emt 0:07:25]} 43. Ke3 {[%emt 0:00:18]} Kf6 {[%emt 0:00:59]} 44. g3 {[%emt 0:00:46]} Bb5 {[%emt 0:03:40]} 45. Nc3 {[%emt 0:00:41]} Ba6 {[%emt 0:00:47]} 46. a3 {[%emt 0:00:56]} g5 {[%emt 0:00:34]} 47. Kf3 {[%emt 0:00:38]} Kg6 {[%emt 0:03:36]} 48. Ke3 {[%emt 0:01:14]} Kh5 {[%emt 0:01:04]} 49. Kf3 {[%emt 0:00:46]} Bb7 {[%emt 0:00:26]} 50. b4 {[%emt 0:00:40]} a5 $2 {[%emt 0:04:09]} (50... Ba6 $19 51. a4 Bd3 52. fxg5 hxg5) 51. fxg5 {[%emt 0:04:03]} ({Only move:} 51. b5 $1 $15) 51... hxg5 {[%emt 0:02:30]} 52. bxa5 {[%emt 0:00:28]} bxa5 {[%emt 0:00:11]} 53. a4 {[%emt 0:00:55]} Ba8 {[%emt 0:02:11]} 54. Nb5 {[%emt 0:03:07]} Bxd5+ {[%emt 0:00:09]} 55. Kf2 {[%emt 0:00:01]} Kg6 {[%emt 0:02:34]} 56. Nxd6 {[%emt 0:00:13]} Kf6 {[%emt 0:00:21]} 57. Nb5 {[%emt 0:01:11]} Ke5 {[%emt 0:00:47]} 58. Ke3 {[%emt 0:00:30]} Bc6 {[%emt 0:01:13]} 59. Nc3 {[%emt 0:01:15]} g4 {[%emt 0:01:49]} 60. Kd3 {[%emt 0:00:34]} f4 {[%emt 0:01:34]} 61. gxf4+ {[%emt 0:00:24]} Kxf4 {[%emt 0:00:04]} 62. Ne2+ {[%emt 0:00:14]} Kg5 {[%emt 0:01:38]} 63. Ke3 {[%emt 0:00:32]} Bxa4 {[%emt 0:00:14]} 64. Kf2 {[%emt 0:00:31]} Kh4 {[%emt 0:01:10]} 65. Kg2 {[%emt 0:01:08]} Bc6+ {[%emt 0:00:24]} 66. Kh2 {[%emt 0:00:05]} a4 {[%emt 0:00:21]} 67. Nd4 {[%emt 0:00:04]} a3 {[%emt 0:00:14]} 68. Nb3 {[%emt 0:00:20]} a2 {[%emt 0:00:09]} 69. Na1 {[%emt 0:00:04]} Ba4 {[%emt 0:00:05]} 70. Kg2 {[%emt 0:00:08]} g3 {[%emt 0:00:23]} 71. Kg1 {[%emt 0:00:07]} Kg4 {[%emt 0:00:11]} 72. Kg2 {[%emt 0:00:04]} Kf4 {[%emt 0:00:05]} 73. Kg1 {[%emt 0:00:09]} Kf3 {[%emt 0:00:10]} 74. Kf1 {[%emt 0:00:07]} Bd1 {[%emt 0:00:07]} 0-1

[Event "IIFL Wealth  4th Mumbai Junior U-13"]
[Site "Mumbai"]
[Date "2019.01.03"]
[Round "5"]
[White "Anurag Panigrahi"]
[Black "Iyer Aarav"]
[Result "1-0"]
[ECO "B23"]
[WhiteElo "1315"]
[BlackElo "1124"]
[Annotator "NA RC"]
[PlyCount "61"]
[EventDate "2018.12.30"]
[EventType "swiss"]
[EventCountry "IND"]
[SourceTitle "playchess.com"]
[Source "ChessBase"]
[SourceQuality "1"]
[TimeControl "40/5400+30:1800+30"]

1. e4 {[%emt 0:00:00]} c5 {[%emt 0:00:00]} 2. Nc3 {[%emt 0:00:46]} Nc6 {[%emt 0:00:00]} 3. f4 {[%emt 0:00:10]} d6 {[%emt 0:00:00]} 4. Nf3 {[%emt 0:00:20]} e6 {[%emt 0:00:12]} 5. Bb5 {[%emt 0:01:23]} Bd7 {[%emt 0:00:09]} 6. d3 {[%emt 0:01:12]} Nf6 {[%emt 0:00:32]} 7. O-O {[%emt 0:02:02]} a6 {[%emt 0:01:34]} 8. Ba4 {[%emt 0:02:03]} b5 {[%emt 0:00:43]} 9. Bb3 {[%emt 0:00:12]} Bc8 {[%emt 0:06:53]} 10. f5 {[%emt 0:13:14]} Be7 {[%emt 0:02:38]} 11. a4 {[%emt 0:13:04]} b4 {[%emt 0:01:44]} 12. Ne2 {[%emt 0:00:19]} exf5 {[%emt 0:03:23]} 13. Ng5 {[%emt 0:04:53]} O-O {[%emt 0:00:18]} 14. Ng3 {[%emt 0:04:52]} Ng4 {[%emt 0:06:28]} 15. Nxf7 {[%emt 0:03:15]} Rxf7 {[%emt 0:01:09]} 16. Bxf7+ {[%emt 0:00:12]} Kxf7 {[%emt 0:05:20]} 17. Qxg4 {[%emt 0:00:17]} Ne5 {[%emt 0:00:41]} 18. Qh5+ {[%emt 0:00:34]} Kg8 {[%emt 0:00:14]} 19. Nxf5 {[%emt 0:01:34]} Bxf5 {[%emt 0:00:55]} 20. exf5 {[%emt 0:00:09]} Qe8 {[%emt 0:00:40]} 21. Qe2 {[%emt 0:02:18]} Rc8 {[%emt 0:01:57]} 22. Bf4 {[%emt 0:01:19]} Bf6 {[%emt 0:03:13]} 23. b3 {[%emt 0:02:47]} Nf7 {[%emt 0:03:31]} 24. Rae1 {[%emt 0:00:58]} Kf8 {[%emt 0:00:15]} 25. Qh5 {[%emt 0:03:22]} Ne5 {[%emt 0:00:26]} 26. Qxh7 {[%emt 0:00:48]} Kf7 {[%emt 0:00:24]} 27. Bxe5 {[%emt 0:01:02]} Bxe5 {[%emt 0:00:06]} 28. f6 {[%emt 0:00:33]} Qh8 {[%emt 0:00:31]} 29. fxg7+ {[%emt 0:00:23]} Ke7 {[%emt 0:00:33]} 30. gxh8=Q+ {[%emt 0:00:27]} Ke6 {[%emt 0:00:10]} 31. Qf7# {[%emt 0:00:07]} 1-0

[Event "IIFL Wealth  4th Mumbai Junior U-13"]
[Site "Mumbai"]
[Date "2019.01.03"]
[Round "5"]
[White "Sohanganesh Uddhav Nikam"]
[Black "Jain Aryan S"]
[Result "1-0"]
[ECO "C50"]
[WhiteElo "1299"]
[BlackElo "1115"]
[Annotator "NA"]
[PlyCount "42"]
[EventDate "2018.12.30"]
[EventType "swiss"]
[EventCountry "IND"]
[SourceTitle "playchess.com"]
[Source "ChessBase"]
[SourceQuality "1"]
[TimeControl "40/5400+30:1800+30"]

1. e4 {[%emt 0:00:00]} e5 {[%emt 0:00:00]} 2. Nf3 {[%emt 0:00:00]} Nc6 {[%emt 0:00:00]} 3. Bc4 {[%emt 0:00:00]} Be7 {[%emt 0:00:26]} 4. d3 {[%emt 0:00:00]} Nf6 {[%emt 0:00:08]} 5. Nc3 {[%emt 0:00:00]} O-O {[%emt 0:00:08]} 6. h3 {[%emt 0:00:00]} d6 {[%emt 0:00:14]} 7. Be3 {[%emt 0:00:00]} Be6 {[%emt 0:00:52]} 8. Bb3 {[%emt 0:00:19]} d5 {[%emt 0:05:30]} 9. exd5 {[%emt 0:01:39]} Nxd5 {[%emt 0:00:25]} 10. d4 {[%emt 0:00:45]} Nxe3 {[%emt 0:01:50]} 11. fxe3 {[%emt 0:00:07]} exd4 {[%emt 0:00:40]} 12. exd4 {[%emt 0:00:16]} Bh4+ {[%emt 0:02:55]} 13. Kf1 {[%emt 0:00:22]} Bxb3 {[%emt 0:04:36]} 14. axb3 {[%emt 0:00:21]} Bf6 {[%emt 0:16:35]} 15. d5 {[%emt 0:01:47]} Ne5 {[%emt 0:01:22]} 16. Kf2 {[%emt 0:01:55]} Nxf3 {[%emt 0:04:23]} 17. Qxf3 {[%emt 0:00:03]} Bd4+ {[%emt 0:00:28]} 18. Kf1 {[%emt 0:00:52]} a6 {[%emt 0:01:03]} 19. Rd1 {[%emt 0:00:27]} Be5 {[%emt 0:00:41]} 20. Kf2 {[%emt 0:02:17]} Qf6 {[%emt 0:01:04]} 21. Rhe1 {[%emt 0:00:00]} Rfe8 {[%emt 0:01:28]} 1-0

[Event "IIFL Wealth  4th Mumbai Junior U-13"]
[Site "Mumbai"]
[Date "2019.01.03"]
[Round "5"]
[White "Vishal Shewale"]
[Black "Bharadia Yash"]
[Result "1-0"]
[ECO "C51"]
[WhiteElo "1287"]
[BlackElo "1559"]
[Annotator "NA"]
[PlyCount "57"]
[EventDate "2018.12.30"]
[EventType "swiss"]
[EventCountry "IND"]
[SourceTitle "playchess.com"]
[Source "ChessBase"]
[SourceQuality "1"]
[TimeControl "40/5400+30:1800+30"]

1. e4 {[%emt 0:00:00]} e5 {[%emt 0:00:00]} 2. Nf3 {[%emt 0:00:00]} Nc6 {[%emt 0:00:00]} 3. Bc4 {[%emt 0:00:03]} Bc5 {[%emt 0:00:00]} 4. b4 {[%emt 0:00:06]} Bxb4 {[%emt 0:00:00]} 5. c3 {[%emt 0:00:15]} Ba5 {[%emt 0:00:00]} 6. d4 {[%emt 0:00:15]} exd4 {[%emt 0:00:00]} 7. O-O {[%emt 0:00:05]} d6 {[%emt 0:00:00]} 8. cxd4 {[%emt 0:00:06]} Bb6 {[%emt 0:00:20]} 9. Nc3 {[%emt 0:00:05]} Nf6 {[%emt 0:00:45]} 10. e5 {[%emt 0:00:04]} dxe5 {[%emt 0:00:55]} 11. Ba3 {[%emt 0:00:05]} Nxd4 {[%emt 0:26:52]} 12. Nxe5 {[%emt 0:00:07]} Be6 {[%emt 0:01:46]} 13. Re1 {[%emt 0:00:10]} c5 {[%emt 0:01:47]} 14. Qa4+ {[%emt 0:03:11]} Kf8 {[%emt 0:12:33]} 15. Rad1 {[%emt 0:00:26]} Kg8 {[%emt 0:01:27]} 16. f4 {[%emt 0:08:00]} Qe8 {[%emt 0:02:03]} 17. Bxe6 {[%emt 0:05:44]} fxe6 {[%emt 0:04:23]} 18. Qc4 {[%emt 0:00:21]} Nc2 {[%emt 0:03:24]} 19. Bb2 {[%emt 0:02:52]} Nxe1 {[%emt 0:00:23]} 20. Rd6 {[%emt 0:00:14]} Kf8 {[%emt 0:26:52]} 21. Rxe6 {[%emt 0:00:43]} Qh5 {[%emt 0:00:14]} 22. Ne4 {[%emt 0:06:46]} Nd3 {[%emt 0:07:24]} 23. Nxd3 {[%emt 0:08:05]} Qd5 {[%emt 0:00:30]} 24. Rxf6+ {[%emt 0:00:14]} gxf6 {[%emt 0:00:10]} 25. Qxd5 {[%emt 0:00:09]} c4+ {[%emt 0:00:30]} 26. Ndc5 {[%emt 0:02:37]} Rd8 {[%emt 0:00:14]} 27. Qf5 {[%emt 0:00:49]} Rd1+ {[%emt 0:00:15]} 28. Kf2 {[%emt 0:00:11]} Bxc5+ {[%emt 0:00:03]} 29. Qxc5+ {[%emt 0:00:08]} 1-0

[Event "IIFL Wealth  4th Mumbai Junior U-13"]
[Site "Mumbai"]
[Date "2019.01.03"]
[Round "5"]
[White "Sneha Halder"]
[Black "Anirudh Satish"]
[Result "1-0"]
[ECO "D00"]
[WhiteElo "1282"]
[BlackElo "1101"]
[Annotator "NA RC"]
[PlyCount "91"]
[EventDate "2018.12.30"]
[EventType "swiss"]
[EventCountry "IND"]
[SourceTitle "playchess.com"]
[Source "ChessBase"]
[SourceQuality "1"]
[TimeControl "40/5400+30:1800+30"]

1. d4 {[%emt 0:00:00]} d5 {[%emt 0:00:00]} 2. Bf4 {[%emt 0:00:00]} Nf6 {[%emt 0:00:00]} 3. c3 {[%emt 0:00:00]} Bg4 {[%emt 0:00:05]} 4. h3 {[%emt 0:00:15]} Bh5 {[%emt 0:00:10]} 5. Nd2 {[%emt 0:00:28]} c5 {[%emt 0:00:36]} 6. dxc5 {[%emt 0:00:19]} Nc6 {[%emt 0:00:16]} 7. Ngf3 {[%emt 0:00:26]} e6 {[%emt 0:00:17]} 8. b4 {[%emt 0:00:37]} a5 {[%emt 0:00:51]} 9. a3 {[%emt 0:00:06]} Be7 {[%emt 0:01:05]} 10. g3 {[%emt 0:01:12]} O-O {[%emt 0:00:15]} 11. Bg2 {[%emt 0:00:37]} h6 {[%emt 0:00:27]} 12. Nb3 {[%emt 0:03:59]} Ne4 {[%emt 0:01:30]} 13. Qc1 {[%emt 0:05:37]} Bf6 {[%emt 0:00:53]} 14. Bd2 {[%emt 0:00:57]} Qb8 {[%emt 0:01:24]} 15. g4 {[%emt 0:01:24]} Bg6 {[%emt 0:00:16]} 16. O-O {[%emt 0:00:34]} a4 {[%emt 0:00:16]} 17. Nbd4 {[%emt 0:00:14]} Nxd2 {[%emt 0:00:34]} 18. Qxd2 {[%emt 0:00:14]} Nxd4 19. Nxd4 Qe5 {[%emt 0:00:51]} 20. f4 {[%emt 0:01:27]} Qc7 {[%emt 0:00:19]} 21. f5 {[%emt 0:01:25]} exf5 {[%emt 0:00:38]} 22. gxf5 {[%emt 0:00:19]} Bh7 {[%emt 0:00:32]} 23. Bxd5 {[%emt 0:01:14]} Qd7 {[%emt 0:00:20]} 24. Be4 {[%emt 0:01:11]} Rfe8 {[%emt 0:00:32]} 25. Qd3 {[%emt 0:00:59]} Bxd4+ {[%emt 0:00:35]} 26. cxd4 {[%emt 0:00:09]} Rad8 {[%emt 0:00:16]} 27. Rad1 {[%emt 0:00:18]} f6 {[%emt 0:01:11]} 28. Bg2 {[%emt 0:00:28]} Qe7 {[%emt 0:00:49]} 29. Qc4+ {[%emt 0:00:36]} Kh8 {[%emt 0:00:18]} 30. e4 Rc8 {[%emt 0:00:32]} 31. d5 {[%emt 0:04:25]} Qd6 {[%emt 0:00:40]} 32. Qb5 {[%emt 0:05:04]} Qa6 {[%emt 0:00:22]} 33. Qxa6 {[%emt 0:00:51]} bxa6 {[%emt 0:00:07]} 34. d6 {[%emt 0:00:26]} Red8 {[%emt 0:00:22]} 35. e5 {[%emt 0:05:29]} fxe5 {[%emt 0:00:17]} 36. c6 {[%emt 0:03:44]} Bg8 37. c7 {[%emt 0:07:07]} Rf8 {[%emt 0:01:07]} 38. Bb7 {[%emt 0:00:16]} Ra8 {[%emt 0:00:33]} 39. Bxa8 {[%emt 0:05:18]} Rxa8 {[%emt 0:00:09]} 40. d7 {[%emt 0:00:00]} Be6 {[%emt 0:00:00]} 41. d8=Q+ {[%emt 0:00:38]} Rxd8 {[%emt 0:00:34]} 42. cxd8=Q+ {[%emt 0:00:12]} Kh7 {[%emt 0:00:11]} 43. fxe6 {[%emt 0:00:11]} a5 {[%emt 0:00:12]} 44. Qf8 {[%emt 0:00:16]} e4 {[%emt 0:00:08]} 45. Rd7 {[%emt 0:00:11]} Kg6 {[%emt 0:00:09]} 46. Qf5# {[%emt 0:00:07]} 1-0